fUSD/lending_fUSD_20260207
["ID","MTS","AMOUNT","RATE_DAILY","PERIOD"]
[404705574,1770485443201,-152.0,0.000409,120]
[404705575,1770485443211,-800.0,0.00040967,13]
[404705576,1770485443220,-800.0,0.00040967,13]
[404705577,1770485443229,-800.0,0.00040967,13]
[404705578,1770485443240,-800.0,0.00040967,13]
[404705579,1770485443249,-800.0,0.00040967,13]
[404705580,1770485443259,-800.0,0.00040967,13]
[404705581,1770485443268,-800.0,0.00040967,13]
[404705582,1770485443278,-800.0,0.00040967,13]
[404705583,1770485443288,-800.0,0.00040967,13]
[404705584,1770485443297,-800.0,0.00040967,13]
[404705585,1770485443307,-800.0,0.00040967,13]
[404705586,1770485443317,-800.0,0.00040967,13]
[404705587,1770485443326,-800.0,0.00040967,13]
[404705588,1770485443336,-800.0,0.00040967,13]
[404705589,1770485443345,-800.0,0.00040967,13]
[404705590,1770485443355,-800.0,0.00040967,13]
[404705591,1770485443365,-800.0,0.00040967,13]
[404705592,1770485443374,-800.0,0.00040967,13]
[404705593,1770485443384,-800.0,0.00040967,13]
[404705594,1770485443394,-800.0,0.00040967,13]
[404705595,1770485443403,-800.0,0.00040967,13]
[404705596,1770485443413,-800.0,0.00040967,13]
[404705597,1770485443423,-800.0,0.00040967,13]
[404705598,1770485443433,-800.0,0.00040967,13]
[404705599,1770485443443,-800.0,0.00040967,13]
[404705601,1770485443452,-800.0,0.00040967,13]
[404705603,1770485443462,-800.0,0.00040967,13]
[404705604,1770485443471,-800.0,0.00040967,13]
[404705605,1770485443480,-800.0,0.00040967,13]
[404705606,1770485443492,-800.0,0.00040967,13]
[404705607,1770485443501,-800.0,0.00040967,13]
[404705608,1770485443511,-800.0,0.00040967,13]
[404705609,1770485443520,-800.0,0.00040967,13]
[404705610,1770485443529,-800.0,0.00040967,13]
[404705611,1770485443539,-800.0,0.00040967,13]
[404705612,1770485443549,-800.0,0.00040967,13]
[404705613,1770485443558,-800.0,0.00040967,13]
[404705614,1770485443567,-800.0,0.00040967,13]
[404705615,1770485443577,-800.0,0.00040967,13]
[404705616,1770485443586,-800.0,0.00040967,13]
[404705617,1770485443595,-800.0,0.00040967,13]
[404705618,1770485443604,-800.0,0.00040967,13]
[404705619,1770485443614,-800.0,0.00040967,13]
[404705620,1770485443623,-251.0,0.00040967,13]
[404705621,1770485443632,-800.0,0.00040967,13]
[404705622,1770485443642,-800.0,0.00040967,13]
[404705623,1770485443653,-800.0,0.00040967,13]
[404705624,1770485443663,-800.0,0.00040967,13]
[404705625,1770485443673,-800.0,0.00040967,13]
[404705626,1770485443683,-800.0,0.00040967,13]
[404705627,1770485443692,-800.0,0.00040967,13]
[404705628,1770485443701,-800.0,0.00040967,13]
[404705629,1770485443711,-800.0,0.00040967,13]
[404705630,1770485443720,-800.0,0.00040967,13]
[404705631,1770485443728,-800.0,0.00040967,13]
[404705632,1770485443737,-800.0,0.00040967,13]
[404705633,1770485443745,-800.0,0.00040967,13]
[404705634,1770485443753,-800.0,0.00040967,13]
[404705635,1770485443762,-800.0,0.00040967,13]
[404705636,1770485443771,-800.0,0.00040967,13]
[404705637,1770485443779,-800.0,0.00040967,13]
[404705638,1770485443787,-800.0,0.00040967,13]
[404705639,1770485443796,-800.0,0.00040967,13]
[404705640,1770485443804,-800.0,0.00040967,13]
[404705641,1770485443813,-800.0,0.00040967,13]
[404705642,1770485443822,-800.0,0.00040967,13]
[404705643,1770485443831,-800.0,0.00040967,13]
[404705644,1770485443840,-800.0,0.00040967,13]
[404705645,1770485443849,-800.0,0.00040967,13]
[404705646,1770485443857,-800.0,0.00040967,13]
[404705647,1770485443866,-800.0,0.00040967,13]
[404705648,1770485443875,-800.0,0.00040967,13]
[404705649,1770485443884,-800.0,0.00040967,13]
[404705650,1770485443893,-800.0,0.00040967,13]
[404705651,1770485443903,-800.0,0.00040967,13]
[404705652,1770485443912,-800.0,0.00040967,13]
[404705653,1770485443921,-800.0,0.00040967,13]
[404705654,1770485443930,-800.0,0.00040967,13]
[404705655,1770485443939,-800.0,0.00040967,13]
[404705656,1770485443948,-800.0,0.00040967,13]
[404705657,1770485443957,-800.0,0.00040967,13]
[404705658,1770485443967,-800.0,0.00040967,13]
[404705659,1770485443975,-800.0,0.00040967,13]
[404705660,1770485443985,-800.0,0.00040967,13]
[404705661,1770485443994,-800.0,0.00040967,13]
[404705662,1770485444004,-800.0,0.00040967,13]
[404705663,1770485444016,-800.0,0.00040967,13]
[404705664,1770485444026,-800.0,0.00040967,13]
[404705665,1770485444037,-800.0,0.00040967,13]
[404705666,1770485444047,-800.0,0.00040967,13]
[404705667,1770485444057,-800.0,0.00040967,13]
[404705668,1770485444067,-800.0,0.00040967,13]
[404705669,1770485444076,-800.0,0.00040967,13]
[404705670,1770485444088,-800.0,0.00040967,13]
[404705671,1770485444098,-800.0,0.00040967,13]
[404705672,1770485444108,-800.0,0.00040967,13]
[404705673,1770485444118,-800.0,0.00040967,13]
[404705674,1770485444129,-800.0,0.00040967,13]
[404705675,1770485444138,-800.0,0.00040967,13]
[404705676,1770485444148,-800.0,0.00040967,13]
[404705677,1770485444159,-800.0,0.00040967,13]
[404705678,1770485444169,-800.0,0.00040967,13]
[404705679,1770485444178,-677.0,0.00040967,13]
[404705680,1770485444188,-671.74,0.00041,30]
[404705681,1770485444199,-605.42548284,0.00041,30]
[404705682,1770485444210,-7882.52258247,0.00041,120]
[404705683,1770485444219,-118714.78180812,0.00041059,2]
[404705684,1770485444230,-300.0,0.00041068,22]
[404705685,1770485444243,-800.0,0.00041082,13]
[404705686,1770485444255,-755.0,0.00041096,60]
[404705687,1770485444266,-755.0,0.00041096,60]
[404705688,1770485444277,-755.0,0.00041096,60]
[404705689,1770485444288,-233.0,0.00041096,60]
[404705690,1770485444299,-784.0,0.00041096,60]
[404705691,1770485444309,-864.0,0.00041096,60]
[404705692,1770485444319,-795.0,0.00041096,60]
[404705693,1770485444329,-795.0,0.00041096,60]
[404705694,1770485444339,-795.0,0.00041096,60]
[404705695,1770485444349,-795.0,0.00041096,60]
[404705696,1770485444360,-795.0,0.00041096,60]
[404705697,1770485444371,-795.0,0.00041096,60]
[404705698,1770485444382,-687.0,0.00041096,60]
[404705699,1770485444393,-237.39765241,0.00041315,120]
[404705700,1770485444404,-1072.73079284,0.0004133,7]
[404705701,1770485444415,-153.0,0.000415,120]
[404705702,1770485444426,-1031.89789323,0.0004171,7]
[404705703,1770485444437,-2000.0,0.000418,7]
[404705704,1770485444447,-152.0,0.000419,120]
[404705705,1770485444458,-3769.11268505,0.000419,120]
[404705706,1770485444470,-163.14469315,0.000419,120]
[404705707,1770485444481,-559.94,0.00041902,120]
[404705709,1770485444493,-500.0,0.00042,2]
[404705710,1770485444505,-10000.0066626,0.00042,120]
[404705711,1770485444516,-44000.00527164,0.00042,120]
[404705712,1770485444528,-437.25445526,0.00042,120]
[404705713,1770485444538,-500.0,0.00042,2]
[404705714,1770485444549,-19063.55539679,0.00042,120]
[404705715,1770485444559,-154.9976635,0.00042,60]
[404705716,1770485444569,-1362.85089815,0.0004201,2]
[404705717,1770485444580,-582.0,0.000421,3]
[404705718,1770485444591,-150.0,0.00042173,120]
[404705719,1770485444601,-153.0,0.000422,120]
[404705720,1770485444612,-4867.78861056,0.000422,2]
[404705721,1770485444622,-152.57984819,0.00042246,2]
[404705722,1770485444633,-7223.2357855,0.00042359,2]
[404705723,1770485444644,-1469.9935213,0.00042359,2]
[404705724,1770485444655,-49699.3973779,0.00042359,2]
[404705725,1770485444667,-176.02,0.00042388,14]
[404705726,1770485444679,-20000.0,0.00042466,120]
[404705727,1770485444690,-6851.73829499,0.000425,120]
[404705728,1770485444702,-21985.30907689,0.000425,120]
[404705729,1770485444713,-151.0,0.00042538,2]
[404705730,1770485444723,-150.0,0.00042538,2]
[404705731,1770485444735,-150.0,0.00042538,2]
[404705732,1770485444746,-150.0,0.00042538,2]
[404705733,1770485444756,-150.0,0.00042538,2]
[404705734,1770485444767,-150.0,0.00042538,2]
[404705735,1770485444780,-150.0,0.00042538,2]
[404705736,1770485444792,-150.0,0.00042538,2]
[404705737,1770485444803,-150.0,0.00042538,2]
[404705738,1770485444816,-150.0,0.00042538,2]
[404705739,1770485444827,-150.0,0.00042538,2]
[404705740,1770485444839,-150.0,0.00042538,2]
[404705741,1770485444850,-150.0,0.00042538,2]
[404705742,1770485444864,-150.0,0.00042538,2]
[404705743,1770485444876,-150.0,0.00042538,2]
[404705744,1770485444887,-150.0,0.00042538,2]
[404705745,1770485444899,-150.0,0.00042538,2]
[404705746,1770485444909,-150.0,0.00042538,2]
[404705747,1770485444919,-150.0,0.00042538,2]
[404705748,1770485444930,-150.0,0.00042538,2]
[404705749,1770485444941,-150.0,0.00042538,2]
[404705750,1770485444952,-150.0,0.00042538,2]
[404705751,1770485444965,-150.0,0.00042538,2]
[404705752,1770485444976,-150.0,0.00042538,2]
[404705753,1770485444987,-150.0,0.00042538,2]
[404705754,1770485444997,-150.0,0.00042538,2]
[404705755,1770485445007,-150.0,0.00042538,2]
[404705756,1770485445020,-150.0,0.00042538,2]
[404705757,1770485445031,-150.0,0.00042538,2]
[404705758,1770485445041,-150.0,0.00042538,2]
[404705759,1770485445052,-214.0,0.00042538,2]
[404705760,1770485445063,-150.0,0.00042538,4]
[404705761,1770485445073,-150.0,0.00042538,4]
[404705762,1770485445085,-150.0,0.00042538,4]
[404705763,1770485445094,-150.0,0.00042538,4]
[404705764,1770485445104,-176.02,0.00042585,14]
[404705765,1770485445114,-507.0,0.00042613,24]
[404705766,1770485445124,-24855.52,0.00042669,5]
[404705767,1770485445134,-37647.64,0.00042669,5]
[404705768,1770485445144,-16452.86,0.00042669,5]
[404705769,1770485445154,-5663.79,0.00042669,5]
[404705770,1770485445165,-82290.12916322,0.000427,120]
[404705771,1770485445175,-426.0,0.00042741,2]
[404705772,1770485445186,-398.0,0.00042774,2]
[404705773,1770485445197,-206.54004602,0.00042777,2]
[404705774,1770485445208,-176.02,0.00042781,14]
[404705775,1770485445219,-152.0,0.000428,120]
[404705776,1770485445231,-405.89892305,0.00042807,2]
[404705777,1770485445242,-285.0,0.00042845,2]
[404705778,1770485445252,-426.0,0.0004287,2]
[404705779,1770485445263,-398.0,0.00042878,2]
[404705780,1770485445273,-426.0,0.00042884,2]
[404705781,1770485445283,-500.0,0.00042892,30]
[404705782,1770485445294,-398.0,0.00042899,2]
[404705783,1770485445305,-154.22,0.000429,14]
[404705784,1770485445315,-2026.35886946,0.000429,2]
[404705785,1770485445325,-151.63239092,0.000429,120]
[404705786,1770485445336,-426.0,0.00042969,2]
[404705787,1770485445346,-379.0,0.00042977,2]
[404705788,1770485445356,-151.0,0.00042997,120]
[404705789,1770485445366,-100000.0,0.00043,8]
[404705790,1770485445376,-500.0,0.00043,2]
[404705791,1770485445388,-180.31815561,0.00043,2]
[404705792,1770485445398,-214.0,0.00043,7]
[404705793,1770485445408,-153.0,0.00043,120]
[404705794,1770485445418,-287834.96754055,0.00043,120]
[404705795,1770485445428,-5150.76509405,0.00043,120]
[404705796,1770485445438,-172.0,0.00043,90]
[404705797,1770485445449,-2664.63780712,0.00043,120]
[404705798,1770485445459,-30704.80357482,0.00043,120]
[404705799,1770485445470,-500.0,0.00043,2]
[404705800,1770485445482,-165.0,0.00043,90]
[404705801,1770485445497,-172.0,0.00043014,90]
[404705802,1770485445507,-349.08014759,0.0004311,10]
[404705803,1770485445517,-2917.608927,0.00043113,7]
[404705804,1770485445528,-1478.176435,0.00043113,7]
[404705805,1770485445538,-931.04,0.00043166,30]
[404705806,1770485445547,-4448.04,0.000432,14]
[404705807,1770485445558,-300.0,0.00043209,30]
[404705808,1770485445567,-153.710297,0.0004321,7]
[404705809,1770485445577,-20000.0,0.0004321,120]
[404705810,1770485445586,-810.119,0.0004321,120]
[404705811,1770485445596,-1000.0,0.0004321,90]
[404705812,1770485445606,-1000.0,0.0004321,90]
[404705813,1770485445616,-1000.0,0.0004321,90]
[404705814,1770485445625,-1000.0,0.0004321,90]
[404705815,1770485445635,-1000.0,0.0004321,90]
[404705816,1770485445646,-1000.0,0.0004321,90]
[404705817,1770485445655,-1000.0,0.0004321,90]
[404705818,1770485445666,-1000.0,0.0004321,90]
[404705819,1770485445676,-1000.0,0.0004321,90]
[404705820,1770485445687,-1000.0,0.0004321,90]
[404705821,1770485445697,-1000.0,0.0004321,90]
[404705822,1770485445707,-1000.0,0.0004321,90]
[404705823,1770485445716,-1000.0,0.0004321,90]
[404705825,1770485445727,-1000.0,0.0004321,90]
[404705827,1770485445736,-1000.0,0.0004321,90]
[404705829,1770485445747,-589.025,0.0004321,90]
[404705832,1770485445757,-295.3341,0.0004322,7]
[404705834,1770485445767,-153.0,0.00043282,10]
[404705836,1770485445776,-151.0,0.00043287,60]
[404705837,1770485445786,-151.0,0.00043287,60]
[404705838,1770485445796,-1011.0823,0.00043299,2]
[404705839,1770485445807,-2000.0,0.000433,2]
[404705840,1770485445818,-507.0,0.000434,25]
[404705841,1770485445828,-568.64997654,0.00043481,60]
[404705842,1770485445839,-479.58366267,0.00043481,60]
[404705843,1770485445848,-849.22020599,0.00043481,60]
[404705844,1770485445858,-282.33214821,0.000435,120]
[404705845,1770485445868,-198.44259772,0.00043572,81]
[404705846,1770485445879,-200.0,0.0004363,120]
[404705847,1770485445889,-152.0,0.000437,120]
[404705848,1770485445899,-153.0,0.000437,120]
[404705849,1770485445911,-150.0,0.00043734,2]
[404705850,1770485445922,-952.55374203,0.00043835,120]
[404705851,1770485445932,-1066.47605799,0.000439,5]
[404705852,1770485445943,-1443.88138384,0.0004395,120]
[404705853,1770485445954,-2224.56167419,0.00043954,15]
[404705854,1770485445964,-170.2742883,0.00043954,18]
[404705855,1770485445975,-191.89062243,0.00043954,120]
[404705856,1770485445985,-2126.64353091,0.00043954,28]
[404705857,1770485446004,-3457.2362287,0.00043954,2]
[404705858,1770485446019,-3000.0,0.00044,7]
[404705859,1770485446030,-150.48158645,0.00044,120]
[404705860,1770485446040,-500.0,0.00044,120]
[404705861,1770485446050,-288.33,0.00044013,120]
[404705862,1770485446061,-151.0,0.00044053,120]
[404705863,1770485446072,-151.0,0.00044053,120]
[404705864,1770485446083,-151.0,0.00044053,120]
[404705865,1770485446094,-154.182507,0.00044053,120]
[404705866,1770485446104,-151.0,0.00044053,120]
[404705867,1770485446114,-261.063484,0.00044053,120]
[404705868,1770485446124,-198.162753,0.00044053,120]
[404705869,1770485446134,-266.64861201,0.00044054,120]
[404705870,1770485446144,-151.0,0.00044054,120]
[404705871,1770485446155,-151.0,0.00044054,120]
[404705872,1770485446165,-151.0,0.00044054,120]
[404705873,1770485446176,-151.0,0.00044054,120]
[404705874,1770485446186,-151.0,0.00044054,120]
[404705875,1770485446200,-151.0,0.00044054,120]
[404705876,1770485446212,-151.0,0.00044054,120]
[404705877,1770485446224,-151.0,0.00044054,120]
[404705878,1770485446237,-151.0,0.00044054,120]
[404705879,1770485446247,-151.0,0.00044054,120]
[404705880,1770485446258,-151.0,0.00044054,120]
[404705881,1770485446268,-151.0,0.00044054,120]
[404705882,1770485446279,-151.0,0.00044054,120]
[404705883,1770485446290,-151.0,0.00044054,120]
[404705884,1770485446301,-151.0,0.00044054,120]
[404705885,1770485446312,-151.0,0.00044054,120]
[404705886,1770485446322,-151.0,0.00044054,120]
[404705887,1770485446333,-151.0,0.00044054,120]
[404705888,1770485446344,-300.075476,0.00044054,120]
[404705889,1770485446354,-184.388117,0.00044054,120]
[404705892,1770485446364,-204.547439,0.00044054,120]
[404705895,1770485446375,-151.0,0.00044054,120]
[404705897,1770485446391,-151.0,0.00044054,120]
[404705900,1770485446401,-171.428821,0.00044054,120]
[404705902,1770485446411,-168.125608,0.00044054,120]
[404705904,1770485446420,-151.0,0.00044054,120]
[404705906,1770485446430,-151.0,0.00044054,120]
[404705908,1770485446440,-151.0,0.00044054,120]
[404705910,1770485446449,-151.0,0.00044054,120]
[404705912,1770485446459,-214.235206,0.00044054,120]
[404705914,1770485446468,-151.0,0.00044054,120]
[404705916,1770485446478,-181.525363,0.00044054,120]
[404705918,1770485446489,-343.274458,0.00044054,120]
[404705920,1770485446499,-343.274458,0.00044054,120]
[404705922,1770485446508,-343.274458,0.00044054,120]
[404705924,1770485446518,-343.274458,0.00044054,120]
[404705927,1770485446528,-343.274458,0.00044054,120]
[404705929,1770485446540,-343.274458,0.00044054,120]
[404705931,1770485446550,-343.274458,0.00044054,120]
[404705933,1770485446560,-343.274458,0.00044054,120]
[404705935,1770485446570,-343.274458,0.00044054,120]
[404705937,1770485446581,-343.274458,0.00044054,120]
[404705939,1770485446591,-343.274458,0.00044054,120]
[404705941,1770485446601,-343.274458,0.00044054,120]
[404705943,1770485446611,-343.274458,0.00044054,120]
[404705945,1770485446621,-343.274458,0.00044054,120]
[404705947,1770485446632,-343.274458,0.00044054,120]
[404705949,1770485446642,-343.274458,0.00044054,120]
[404705951,1770485446653,-343.274458,0.00044054,120]
[404705953,1770485446663,-343.274458,0.00044054,120]
[404705956,1770485446677,-343.274458,0.00044054,120]
[404705958,1770485446686,-343.274467,0.00044054,120]
[404705960,1770485446695,-151.0,0.00044054,120]
[404705962,1770485446706,-151.0,0.00044054,120]
[404705964,1770485446717,-151.0,0.00044054,120]
[404705966,1770485446727,-162.780205,0.00044054,120]
[404705968,1770485446740,-399.634803,0.00044054,120]
[404705969,1770485446750,-399.634803,0.00044054,120]
[404705970,1770485446760,-399.634803,0.00044054,120]
[404705971,1770485446771,-399.634803,0.00044054,120]
[404705972,1770485446781,-399.634803,0.00044054,120]
[404705973,1770485446792,-399.634803,0.00044054,120]
[404705974,1770485446805,-399.634803,0.00044054,120]
[404705975,1770485446816,-399.634803,0.00044054,120]
[404705976,1770485446829,-399.634803,0.00044054,120]
[404705977,1770485446840,-399.634803,0.00044054,120]
[404705978,1770485446850,-399.634803,0.00044054,120]
[404705979,1770485446861,-399.634803,0.00044054,120]
[404705980,1770485446871,-399.634803,0.00044054,120]
[404705981,1770485446881,-399.634803,0.00044054,120]
[404705982,1770485446893,-399.634803,0.00044054,120]
[404705983,1770485446903,-399.634803,0.00044054,120]
[404705984,1770485446915,-399.634803,0.00044054,120]
[404705985,1770485446925,-399.634803,0.00044054,120]
[404705986,1770485446940,-399.634803,0.00044054,120]
[404705987,1770485446949,-399.634799,0.00044054,120]
[404705988,1770485447246,-151.0,0.00044054,120]
[404705989,1770485447257,-151.0,0.00044054,120]
[404705990,1770485447268,-151.0,0.00044054,120]
[404705991,1770485447278,-151.0,0.00044054,120]
[404705992,1770485447288,-151.0,0.00044054,120]
[404705993,1770485447298,-151.0,0.00044054,120]
[404705994,1770485447308,-173.003854,0.00044054,120]
[404705995,1770485447319,-173.436972,0.00044054,120]
[404705996,1770485447329,-173.436972,0.00044054,120]
[404705997,1770485447338,-173.436972,0.00044054,120]
[404705998,1770485447348,-173.436972,0.00044054,120]
[404705999,1770485447358,-173.436972,0.00044054,120]
[404706000,1770485447368,-173.436972,0.00044054,120]
[404706001,1770485447377,-173.436972,0.00044054,120]
[404706002,1770485447387,-173.436972,0.00044054,120]
[404706003,1770485447396,-173.436972,0.00044054,120]
[404706004,1770485447406,-282.093951,0.00044054,120]
[404706005,1770485447415,-282.093951,0.00044054,120]
[404706006,1770485447425,-173.436972,0.00044054,120]
[404706007,1770485447434,-282.093951,0.00044054,120]
[404706008,1770485447443,-173.436972,0.00044054,120]
[404706009,1770485447453,-151.0,0.00044054,120]
[404706010,1770485447463,-173.436972,0.00044054,120]
[404706011,1770485447472,-282.093951,0.00044054,120]
[404706012,1770485447482,-151.0,0.00044054,120]
[404706013,1770485447492,-282.093951,0.00044054,120]
[404706014,1770485447501,-173.436972,0.00044054,120]
[404706015,1770485447511,-151.0,0.00044054,120]
[404706016,1770485447521,-173.436972,0.00044054,120]
[404706017,1770485447530,-282.093951,0.00044054,120]
[404706018,1770485447540,-151.0,0.00044054,120]
[404706019,1770485447551,-173.436972,0.00044054,120]
[404706020,1770485447560,-282.093951,0.00044054,120]
[404706021,1770485447570,-151.0,0.00044054,120]
[404706022,1770485447580,-173.436972,0.00044054,120]
[404706023,1770485447590,-282.093951,0.00044054,120]
[404706024,1770485447600,-173.436972,0.00044054,120]
[404706025,1770485447609,-282.093951,0.00044054,120]
[404706026,1770485447619,-151.0,0.00044054,120]
[404706027,1770485447629,-282.093951,0.00044054,120]
[404706028,1770485447639,-173.436972,0.00044054,120]
[404706029,1770485447649,-151.0,0.00044054,120]
[404706030,1770485447658,-282.093951,0.00044054,120]
[404706031,1770485447668,-173.436972,0.00044054,120]
[404706032,1770485447678,-151.0,0.00044054,120]
[404706033,1770485447688,-282.093951,0.00044054,120]
[404706034,1770485447697,-173.436972,0.00044054,120]
[404706035,1770485447707,-151.0,0.00044054,120]
[404706036,1770485447717,-282.093951,0.00044054,120]
[404706037,1770485447726,-151.0,0.00044054,120]
[404706038,1770485447736,-282.093951,0.00044054,120]
[404706039,1770485447746,-151.0,0.00044054,120]
[404706040,1770485447755,-282.093951,0.00044054,120]
[404706041,1770485447765,-151.0,0.00044054,120]
[404706042,1770485447775,-282.093951,0.00044054,120]
[404706043,1770485447784,-221.369774,0.00044054,120]
[404706044,1770485447794,-282.093951,0.00044054,120]
[404706045,1770485447803,-282.093951,0.00044054,120]
[404706046,1770485447813,-282.093951,0.00044054,120]
[404706047,1770485447822,-282.093953,0.00044054,120]
[404706048,1770485447831,-520.010285,0.00044054,120]
[404706049,1770485447841,-520.010285,0.00044054,120]
[404706050,1770485447851,-151.0,0.00044054,120]
[404706051,1770485447860,-520.010285,0.00044054,120]
[404706052,1770485447869,-262.368647,0.00044054,120]
[404706053,1770485447879,-520.010285,0.00044054,120]
[404706054,1770485447888,-520.010285,0.00044054,120]
[404706055,1770485447897,-520.010285,0.00044054,120]
[404706056,1770485447906,-520.010285,0.00044054,120]
[404706057,1770485447916,-520.010285,0.00044054,120]
[404706058,1770485447925,-520.010285,0.00044054,120]
[404706059,1770485447935,-520.010285,0.00044054,120]
[404706060,1770485447944,-520.010285,0.00044054,120]
[404706061,1770485447953,-520.010285,0.00044054,120]
[404706062,1770485447963,-520.010285,0.00044054,120]
[404706063,1770485447972,-520.010285,0.00044054,120]
[404706064,1770485447983,-152.916875,0.00044054,120]
[404706065,1770485447993,-520.010285,0.00044054,120]
[404706066,1770485448003,-520.010285,0.00044054,120]
[404706067,1770485448014,-520.010285,0.00044054,120]
[404706068,1770485448023,-520.010285,0.00044054,120]
[404706069,1770485448032,-520.010285,0.00044054,120]
[404706070,1770485448041,-187.553409,0.00044054,120]
[404706071,1770485448051,-520.01028,0.00044054,120]
[404706072,1770485448060,-559.100773,0.00044054,120]
[404706073,1770485448070,-559.100773,0.00044054,120]
[404706074,1770485448079,-559.100773,0.00044054,120]
[404706075,1770485448091,-559.100773,0.00044054,120]
[404706076,1770485448101,-559.100773,0.00044054,120]
[404706077,1770485448111,-559.100773,0.00044054,120]
[404706078,1770485448122,-559.100773,0.00044054,120]
[404706079,1770485448142,-559.100773,0.00044054,120]
[404706080,1770485448152,-559.100773,0.00044054,120]
[404706081,1770485448163,-559.100773,0.00044054,120]
[404706082,1770485448173,-559.100773,0.00044054,120]
[404706083,1770485448182,-559.100773,0.00044054,120]
[404706084,1770485448191,-559.100773,0.00044054,120]
[404706085,1770485448201,-559.100773,0.00044054,120]
[404706086,1770485448211,-559.100773,0.00044054,120]
[404706087,1770485448220,-559.100773,0.00044054,120]
[404706088,1770485448229,-559.100773,0.00044054,120]
[404706089,1770485448239,-559.100773,0.00044054,120]
[404706090,1770485448248,-559.100773,0.00044054,120]
[404706091,1770485448258,-559.10078,0.00044054,120]
[404706092,1770485448268,-188.75661,0.00044054,120]
[404706093,1770485448277,-188.75661,0.00044054,120]
[404706094,1770485448287,-188.75661,0.00044054,120]
[404706095,1770485448297,-188.75661,0.00044054,120]
[404706096,1770485448307,-188.75661,0.00044054,120]
[404706097,1770485448317,-188.75661,0.00044054,120]
[404706098,1770485448327,-188.75661,0.00044054,120]
[404706099,1770485448336,-188.75661,0.00044054,120]
[404706100,1770485448346,-188.75661,0.00044054,120]
[404706101,1770485448355,-188.75661,0.00044054,120]
[404706102,1770485448365,-188.75661,0.00044054,120]
[404706103,1770485448374,-188.75661,0.00044054,120]
[404706104,1770485448384,-188.75661,0.00044054,120]
[404706105,1770485448393,-188.75661,0.00044054,120]
[404706106,1770485448402,-188.75661,0.00044054,120]
[404706107,1770485448412,-188.75661,0.00044054,120]
[404706108,1770485448421,-188.75661,0.00044054,120]
[404706109,1770485448431,-188.75661,0.00044054,120]
[404706110,1770485448440,-188.75661,0.00044054,120]
[404706111,1770485448449,-151.0,0.00044054,120]
[404706112,1770485448458,-188.756617,0.00044054,120]
[404706113,1770485448468,-151.0,0.00044054,120]
[404706114,1770485448478,-151.0,0.00044054,120]
[404706115,1770485448487,-151.0,0.00044054,120]
[404706116,1770485448497,-151.0,0.00044054,120]
[404706117,1770485448507,-151.0,0.00044054,120]
[404706118,1770485448516,-151.0,0.00044054,120]
[404706119,1770485448525,-151.0,0.00044054,120]
[404706120,1770485448535,-151.0,0.00044054,120]
[404706121,1770485448544,-229.044107,0.00044054,120]
[404706122,1770485448553,-536.807343,0.00044054,120]
[404706123,1770485448563,-536.807343,0.00044054,120]
[404706124,1770485448572,-536.807343,0.00044054,120]
[404706125,1770485448581,-536.807343,0.00044054,120]